bitfinex-derivatives/quotes_ETHF0:USTF0_20250123
["timestamp","ask_amount","ask_price","bid_price","bid_amount"]
[1737611924004,6.26655427,3217.0,3216.9,40.8]
[1737611924805,6.26655427,3217.0,3216.7,3.2078]
[1737611924806,0.62213,3216.8,3216.7,3.2078]
[1737611925002,3.1258486,3216.8,3216.7,3.2078]
[1737611925203,0.6222,3216.5,3216.1,0.62226]
[1737611925505,1.0525,3216.4,3216.1,0.62226]
[1737611925696,1.5332,3216.4,3216.1,0.62226]
[1737611925898,2.45339574,3216.3,3216.2,40.8]
[1737611926300,2.45339574,3216.3,3216.2,41.42225]
[1737611927210,2.45339574,3216.6,3216.2,40.8]
[1737611927407,2.45339574,3216.6,3216.4,3.83]
[1737611927605,0.5192,3216.5,3216.4,3.83]
[1737611927805,0.5192,3216.5,3216.4,3.2078]
[1737611928007,1.0355,3216.5,3216.4,3.2078]
[1737611928207,1.0355,3216.5,3216.4,3.83001]
[1737611928509,2.45339574,3216.6,3216.4,3.2078]
[1737611928703,2.45339574,3216.9,3216.5,0.4882]
[1737611928903,2.45339574,3216.9,3216.6,0.62216]
[1737611929302,2.45339574,3216.9,3216.7,40.8]
[1737611929703,2.45339574,3216.9,3216.7,41.42215]
[1737611930005,2.45339574,3216.9,3216.7,40.8]
[1737611930212,2.45339574,3216.9,3216.7,41.42215]
[1737611930606,2.45339574,3216.9,3216.7,40.8]
[1737611931505,2.45339574,3216.9,3216.7,41.42214]
[1737611932002,2.45339574,3216.9,3216.7,40.8]
[1737611933807,3.07552574,3216.9,3216.7,40.8]
[1737611934105,0.62213,3216.8,3216.7,40.8]
[1737611934307,2.45339574,3216.9,3216.7,40.8]
[1737611934499,0.67244835,3216.8,3216.7,40.8]
[1737611934700,0.67245026,3216.8,3216.7,40.8]
[1737611936116,0.05032026,3216.8,3216.7,40.8]
[1737611936316,0.05031899,3216.8,3216.7,40.8]
[1737611937713,2.45339574,3216.9,3216.7,40.8]
[1737611938916,0.67244783,3216.8,3216.7,40.8]
[1737611940110,0.05031783,3216.8,3216.7,40.8]
[1737611940311,3.07550574,3216.9,3216.7,40.8]
[1737611940820,0.05031757,3216.8,3216.7,40.8]
[1737611941015,2.45339574,3216.9,3216.7,41.42215]
[1737611941216,3.07545574,3217.2,3216.9,0.62209]
[1737611941815,2.45339574,3217.2,3216.9,0.6221]
[1737611942320,3.07545574,3217.2,3216.9,0.6221]
[1737611943215,3.07545574,3217.2,3216.8,1.0091]
[1737611943416,2.45339574,3217.2,3216.8,1.0091]
[1737611943617,3.07546574,3217.2,3216.9,0.62211]
[1737611944422,0.62208,3217.1,3216.8,1.63122]
[1737611944623,2.45339574,3216.9,3216.8,1.0091]
[1737611944823,0.62213,3216.8,3216.7,40.8]
[1737611945023,1.63523,3216.8,3216.7,40.8]
[1737611946114,1.68554915,3216.8,3216.7,40.8]
[1737611951922,1.0131,3216.8,3216.7,40.8]
[1737611952117,3.07545574,3217.2,3216.7,40.8]
[1737611952318,0.05031396,3217.1,3216.9,0.6221]
[1737611952623,0.62208,3217.1,3216.8,2.15842]
[1737611953421,3.07546574,3217.2,3216.8,2.15842]
[1737611953824,3.07546574,3217.2,3216.9,0.62211]
[1737611954627,2.45339574,3217.2,3216.9,0.62211]
[1737611955328,2.45339574,3217.2,3216.8,4.7441]
[1737611955627,3.07546574,3217.2,3216.8,5.36622]
[1737611956027,2.45339574,3217.2,3216.9,0.6221]
[1737611956424,2.45339574,3217.2,3217.0,0.62208]
[1737611956626,2.45339574,3217.2,3216.9,0.6221]
[1737611958027,2.45339574,3217.2,3216.8,4.7441]
[1737611958228,2.45339574,3217.2,3216.9,0.62211]
[1737611958428,2.45339574,3217.2,3217.0,0.62208]
[1737611961429,0.503,3217.4,3216.8,4.7441]
[1737611961430,0.503,3217.4,3217.2,0.62204]
[1737611961630,0.503,3217.4,3217.3,0.5213]
[1737611962231,0.503,3217.4,3217.3,1.0176]
[1737611962933,0.00466273,3217.5,3217.3,1.63962]
[1737611963126,0.00466273,3217.5,3217.4,0.62201]
[1737611963327,0.00466273,3217.5,3217.3,2.14452]
[1737611963728,0.00466273,3217.5,3217.4,40.8]
[1737611964439,0.00466273,3217.5,3217.4,41.42201]
[1737611965036,2.45805847,3217.5,3217.4,40.8]
[1737611965937,0.62201,3217.4,3217.2,3.2078]
[1737611966131,0.62203,3217.3,3217.2,3.6897]
[1737611966437,0.62203,3217.3,3217.2,44.4897]
[1737611969639,0.62203,3217.3,3217.2,44.0078]
[1737611971043,0.62203,3217.3,3217.2,40.8]
[1737611972035,0.62202,3217.4,3217.2,40.8]
[1737611972838,3.97245847,3217.5,3217.2,41.42205]
[1737611973036,3.97245847,3217.5,3217.3,0.62203]
[1737611974341,3.48175847,3217.5,3217.2,41.29]
[1737611974649,3.48175847,3217.5,3217.3,0.62203]
[1737611975242,4.10375847,3217.5,3217.2,41.91204]
[1737611975944,3.48175847,3217.5,3217.3,0.62203]
[1737611976147,3.48175847,3217.5,3217.3,1.13223]
[1737611976638,3.48175847,3217.5,3217.3,0.5102]
[1737611976833,4.10376847,3217.5,3217.2,41.42205]
[1737611977033,0.5047,3217.4,3217.2,41.42205]
[1737611982149,0.5047,3217.4,3217.2,40.8]
[1737611982345,0.5047,3217.4,3217.3,0.62203]
[1737611985951,0.5047,3217.4,3217.2,41.2977]
[1737611986153,0.5047,3217.4,3217.2,41.42205]
[1737611986952,0.5047,3217.4,3217.3,0.62203]
[1737611987347,0.5047,3217.4,3217.2,40.8]
[1737611987547,0.5047,3217.4,3217.2,41.42204]
[1737611988055,0.5047,3217.4,3217.3,0.62203]
[1737611988250,0.5047,3217.4,3217.2,41.42204]
[1737611989052,0.5047,3217.4,3217.3,0.62203]
[1737611989248,0.5047,3217.4,3217.2,41.42204]
[1737611989456,1.12673,3217.4,3217.2,40.8]
[1737611990750,1.12673,3217.4,3217.2,41.42205]
[1737611993057,1.12672,3217.4,3217.2,41.42205]
[1737611993251,0.5047,3217.4,3217.2,41.42205]
[1737611993451,0.62203,3217.3,3217.2,40.8]
[1737611993653,1.12672,3217.4,3217.2,40.8]
[1737611995252,0.62203,3217.3,3217.2,40.8]
[1737611995456,1.12672,3217.4,3217.2,40.8]
[1737611995659,1.12672,3217.4,3217.2,41.42205]
[1737611996659,0.5047,3217.4,3217.2,41.42205]
[1737611996961,0.62203,3217.3,3217.2,40.8]
[1737611997150,0.67234078,3217.3,3217.2,40.8]
[1737612001263,0.67234419,3217.3,3217.2,40.8]
[1737612002459,4.80624187,3217.3,3217.2,40.8]
[1737612002665,5.22300588,3217.3,3217.2,40.8]
[1737612003270,4.60098029,3217.3,3216.6,3.2078]
[1737612003462,2.45339574,3216.7,3216.6,3.2078]
[1737612003659,2.45339574,3216.7,3216.6,44.0078]
[1737612003872,3.07554574,3216.7,3216.6,44.0078]
[1737612004069,2.45339574,3216.7,3216.6,44.0078]
[1737612005266,2.45339574,3216.7,3216.6,44.62997]
[1737612005771,0.487,3216.8,3216.6,44.0078]
[1737612005976,2.45339574,3217.0,3216.7,0.62215]
[1737612006171,2.45339574,3217.0,3216.9,0.62211]
[1737612006378,3.12581135,3217.0,3216.7,1.0047]
[1737612006576,0.05031573,3216.9,3216.7,0.5091]
[1737612006772,0.62215,3216.7,3216.6,44.0078]
[1737612006979,3.07554574,3216.7,3216.6,44.0078]
[1737612007470,3.60224574,3216.7,3216.6,44.0078]
[1737612007975,2.45339574,3217.0,3216.9,0.62211]
[1737612008180,2.50371167,3217.0,3216.9,0.62211]
[1737612008582,2.50371167,3217.0,3216.8,0.62212]
[1737612008880,2.45339574,3217.0,3216.9,0.5109]
[1737612009180,2.50371162,3217.0,3216.9,0.5109]
[1737612009575,0.62214,3216.8,3216.6,44.0078]
[1737612009767,2.45339574,3216.7,3216.6,44.0078]
[1737612010569,2.45339574,3216.7,3216.6,44.62997]
[1737612010774,3.07549574,3217.0,3216.7,0.62214]
[1737612010973,0.05031602,3216.9,3216.7,0.5128]
[1737612011277,4.12184794,3217.0,3216.9,0.62211]
[1737612011479,3.07549574,3217.0,3216.7,1.13494]
[1737612011686,2.45339574,3217.0,3216.7,1.13494]
[1737612012984,0.05031672,3216.9,3216.7,0.5128]
[1737612013186,0.62213,3216.8,3216.7,0.5128]
[1737612013379,1.10353,3216.8,3216.7,0.5128]
[1737612013580,1.10353,3216.8,3216.6,44.0078]
[1737612013581,1.65055871,3216.8,3216.6,44.0078]
[1737612013884,2.45339574,3216.7,3216.6,44.0078]
[1737612014974,3.07554574,3216.7,3216.6,44.4872]
[1737612015174,2.45339574,3216.7,3216.6,44.4872]
[1737612018492,3.07554574,3216.7,3216.6,44.4872]
[1737612019492,3.12586602,3216.7,3216.6,44.0078]
[1737612021887,3.12586718,3216.7,3216.6,44.0078]
[1737612023390,3.07554574,3216.7,3216.6,44.0078]
[1737612023590,3.12586823,3216.7,3216.6,44.0078]
[1737612023791,3.12586823,3216.7,3216.6,40.8]
[1737612024187,0.05032249,3216.7,3216.6,40.8]
[1737612024388,0.46658531,3216.9,3216.6,40.8]
[1737612024589,2.45339574,3216.7,3216.6,40.8]
[1737612024788,0.05032249,3216.7,3216.6,40.8]
[1737612024985,0.62209,3217.1,3216.6,45.65997]
[1737612025295,3.12581075,3217.0,3216.6,45.0378]
[1737612025496,3.07549574,3217.0,3216.6,45.65996]
[1737612026095,0.05031641,3216.9,3216.6,45.65996]
[1737612026488,3.07549574,3217.0,3216.6,45.65996]
[1737612027198,2.45339574,3217.3,3216.6,45.0378]
[1737612027489,3.2078,3218.1,3217.1,2.45339574]
[1737612027696,2.93909574,3218.3,3218.0,0.6219]
[1737612027893,2.93909574,3218.3,3217.9,3.82971]
[1737612028086,2.93909574,3218.3,3218.1,40.8]
[1737612032495,0.04990418,3218.2,3218.1,40.8]
[1737612032893,2.93909574,3218.3,3218.1,40.8]
[1737612033102,0.04990503,3218.2,3218.1,40.8]
[1737612033488,3.56094574,3218.3,3218.1,40.8]
[1737612033689,0.04990518,3218.2,3218.1,40.8]
[1737612034291,0.04990485,3218.2,3218.1,40.8]
[1737612035395,0.04990551,3218.2,3218.1,40.8]
[1737612035594,3.56094574,3218.3,3218.1,40.8]
[1737612035997,0.67176501,3218.2,3218.1,40.8]
[1737612036998,0.67176573,3218.2,3218.1,40.8]
[1737612037194,0.04990573,3218.2,3217.9,3.21246273]
[1737612037393,2.93909574,3218.3,3217.9,3.21246273]
[1737612037394,3.07529574,3218.0,3217.9,3.21246273]
[1737612037600,3.12520557,3218.0,3217.9,3.21246273]
[1737612039692,3.12520557,3218.0,3217.9,44.01246273]
[1737612040603,3.07529574,3218.0,3217.9,44.01246273]
[1737612040903,3.12520698,3218.0,3217.9,44.01246273]
[1737612043291,3.12520698,3218.0,3217.9,3.21246273]
[1737612043499,3.12520698,3218.0,3217.9,0.00466273]
[1737612046712,7.15319122,3218.0,3217.9,0.00466273]
[1737612047401,7.15319299,3218.0,3217.9,0.00466273]
[1737612048107,2.50330875,3218.0,3217.9,3.21246273]
[1737612048706,2.50330875,3218.0,3217.9,44.01246273]
[1737612049214,2.50330404,3218.0,3217.9,44.01246273]
[1737612049712,3.12520404,3218.0,3217.9,44.01246273]
[1737612050411,2.50330404,3218.0,3217.9,44.01246273]
[1737612050611,3.12520404,3218.0,3217.9,44.01246273]
[1737612052404,3.07529574,3218.0,3217.9,44.01246273]
[1737612052606,3.12520422,3218.0,3217.9,44.01246273]
[1737612053710,3.12520422,3218.0,3217.9,3.21246273]
[1737612053912,0.62205,3217.3,3217.0,3.2078]
[1737612054209,2.45339574,3217.5,3217.1,41.42206]
[1737612054409,3.07540574,3217.5,3217.1,41.93436]
[1737612054711,3.07540574,3217.5,3217.1,41.3123]
[1737612055104,2.45339574,3217.5,3217.2,0.62205]
[1737612055304,2.45339574,3217.5,3217.4,3.2078]
[1737612055911,2.45339574,3217.5,3217.4,44.0078]
[1737612056514,3.07539574,3217.5,3217.4,44.0078]
[1737612057416,0.5231,3217.7,3217.5,0.62198]
[1737612057602,3.4293,3217.9,3217.5,0.622]
[1737612057801,4.2857,3218.1,3217.8,3.2078]
[1737612057802,1.14499,3218.1,3217.8,3.2078]
[1737612058412,1.14499,3218.1,3217.9,40.8]
[1737612058713,3.59838574,3218.1,3217.9,40.8]
[1737612059508,0.6219,3218.0,3217.9,40.8]
[1737612059916,0.6718086,3218.0,3217.9,40.8]
[1737612060108,0.67180942,3218.0,3217.9,40.8]
[1737612060817,0.6219,3218.0,3217.9,40.8]
[1737612061207,0.62194,3217.8,3217.4,3.2078]
[1737612061512,0.62198,3217.6,3217.4,3.2078]
[1737612061702,0.62198,3217.6,3217.5,40.8]
[1737612062412,0.622,3217.5,3217.4,3.2078]
[1737612062617,0.04991713,3217.6,3217.4,3.2078]
[1737612062810,0.04991713,3217.6,3217.5,40.8]
[1737612062811,0.62199,3217.6,3217.5,40.8]
[1737612063115,2.95159574,3217.7,3217.5,40.8]
[1737612063513,0.62198,3217.6,3217.5,40.8]
[1737612063714,0.67189581,3217.6,3217.5,40.8]
[1737612063905,0.67189684,3217.6,3217.5,40.8]
[1737612064613,0.04991684,3217.6,3217.5,40.8]
[1737612064916,3.57356574,3217.7,3217.5,40.8]
[1737612065104,2.95159574,3217.7,3217.5,40.8]
[1737612066518,0.62198,3217.6,3217.5,40.8]
[1737612067418,0.67189705,3217.6,3217.5,40.8]
[1737612067811,0.62198,3217.6,3217.5,40.8]
[1737612068620,0.67189729,3217.6,3217.5,40.8]
[1737612070615,0.67189845,3217.6,3217.5,40.8]
[1737612070813,3.62189845,3217.6,3217.5,40.8]
[1737612072212,3.57198,3217.6,3217.5,40.8]
[1737612072412,3.62189805,3217.6,3217.5,40.8]
[1737612075720,3.62189836,3217.6,3217.5,40.8]
[1737612077226,3.57198,3217.6,3217.5,40.8]
[1737612077426,3.6219026,3217.6,3217.5,40.8]
[1737612077621,4.03543834,3217.6,3217.5,40.8]
[1737612078319,8.12432431,3217.6,3217.5,40.8]
[1737612079112,8.12432455,3217.6,3217.5,40.8]
[1737612080326,8.65192455,3217.6,3217.5,40.8]
[1737612082431,8.65192326,3217.6,3217.5,40.8]
[1737612083931,8.65192326,3217.6,3217.0,3.21246273]
[1737612083932,0.62207,3217.1,3217.0,3.21246273]
[1737612084139,3.12539322,3217.1,3217.0,3.21246273]
[1737612084333,3.12539322,3217.1,3217.0,44.01246273]
[1737612085138,3.12539322,3217.1,3217.0,40.80466273]
[1737612085630,3.60569322,3217.1,3217.0,40.80466273]
[1737612085833,4.01923101,3217.1,3217.0,40.80466273]
[1737612086331,3.60569527,3217.1,3217.0,40.80466273]
[1737612086834,3.55576574,3217.1,3217.0,40.80466273]
[1737612087026,3.60569053,3217.1,3217.0,40.80466273]
[1737612087336,2.98362053,3217.1,3217.0,40.80466273]
[1737612087528,0.4803,3217.1,3217.0,44.01246273]
[1737612087734,3.958,3217.3,3217.0,44.63454273]
[1737612088332,3.958,3217.3,3217.1,0.5126]
[1737612088533,2.95,3217.3,3217.1,0.5126]
[1737612088831,2.45339574,3217.4,3217.1,1.0363]
[1737612089031,0.04992046,3217.3,3217.1,1.0363]
[1737612089227,2.86676107,3217.4,3217.1,1.0363]
[1737612089536,0.62205,3217.2,3217.1,0.5126]
[1737612089731,0.62205,3217.2,3217.0,44.01246273]
[1737612089929,2.45339574,3217.1,3217.0,44.01246273]
[1737612090130,3.07546574,3217.1,3217.0,44.01246273]
[1737612091234,3.12539252,3217.1,3217.0,44.01246273]
[1737612092733,3.1253928,3217.1,3217.0,44.01246273]
[1737612094239,3.07546574,3217.1,3217.0,44.01246273]
[1737612094430,4.1546932,3217.1,3217.0,44.01246273]
[1737612095026,2.5033232,3217.1,3217.0,44.01246273]
[1737612095536,2.45339574,3217.1,3217.0,44.01246273]
[1737612098034,2.95,3217.3,3217.1,0.62207]
[1737612099037,2.95,3217.3,3217.0,44.01246273]
[1737612099038,2.95,3217.3,3217.0,44.63454273]
[1737612099633,5.66119574,3217.7,3217.0,44.01246273]
[1737612099843,3.07535574,3217.7,3217.4,3.2078]
[1737612100038,3.07535574,3217.7,3217.5,0.9969]
[1737612100338,2.45339574,3217.7,3217.5,0.9969]
[1737612100740,2.45339574,3217.7,3217.5,1.1515]
[1737612100937,3.44839574,3218.0,3217.5,1.1515]
[1737612101138,0.04991227,3217.9,3217.8,3.82974]
[1737612101347,0.04990688,3218.2,3217.8,3.2078]
[1737612101534,2.45339574,3218.3,3218.0,0.62189]
[1737612101734,2.45339574,3218.3,3218.1,40.8]
[1737612103639,0.00466273,3218.5,3218.2,3.82965]
[1737612103838,0.00466273,3218.5,3218.3,0.4813]
[1737612104045,0.00466273,3218.5,3218.4,0.62182]
[1737612104234,0.00466273,3218.5,3218.4,1.10242]
[1737612104440,0.00466273,3218.5,3218.4,0.4806]
[1737612106141,0.00466273,3218.5,3218.4,1.10242]
[1737612106338,0.00466273,3218.5,3218.4,0.4806]
[1737612108532,0.00466273,3218.5,3218.4,1.10242]
[1737612109743,2.95139574,3219.2,3218.8,0.62174]
[1737612109941,0.04988813,3219.1,3218.9,3.2078]
[1737612110140,0.04988813,3219.1,3218.9,3.6987]
[1737612110335,0.04988813,3219.1,3219.0,40.8]
[1737612111232,0.5034,3219.3,3219.0,41.42171]
[1737612111442,0.04988664,3219.2,3219.0,41.42171]
[1737612111640,0.04988664,3219.3,3219.0,41.42171]
[1737612111843,0.04988736,3219.2,3219.0,41.42171]
[1737612112146,0.52856273,3219.4,3219.0,41.42171]
[1737612112445,0.04988632,3219.3,3219.0,41.42171]
[1737612112644,0.04988632,3219.3,3219.0,40.8]
[1737612112836,0.04988632,3219.3,3219.1,1.12998]
[1737612113037,0.04988632,3219.3,3219.1,0.5083]
[1737612113439,0.04988632,3219.3,3219.1,1.12998]
[1737612114038,0.04988632,3219.3,3219.1,0.5083]
[1737612115139,0.00466273,3219.4,3219.1,1.12998]
[1737612115339,0.04988443,3219.3,3219.1,1.12998]
[1737612115540,0.04988443,3219.3,3219.1,0.5083]
[1737612115746,0.04988443,3219.3,3219.0,0.6217]
[1737612115945,0.5248,3219.2,3219.1,40.8]
[1737612118357,1.14647,3219.2,3219.1,40.8]
[1737612119854,3.59986574,3219.2,3219.1,40.8]
[1737612120247,3.64975621,3219.2,3219.1,40.8]
[1737612122943,3.64975419,3219.2,3219.1,40.8]
[1737612123148,2.97819574,3219.2,3219.1,40.8]
[1737612123650,0.5248,3219.2,3219.1,40.8]
[1737612124254,0.00466273,3219.4,3219.1,40.8]
[1737612124449,0.00466273,3219.4,3219.3,3.2078]
[1737612126151,0.62629273,3219.4,3219.3,3.2078]
[1737612126349,0.00466273,3219.4,3219.3,3.2078]
[1737612126740,0.62629273,3219.4,3219.3,3.2078]
[1737612126948,0.62167,3219.2,3219.1,40.8]
[1737612127157,3.07506574,3219.2,3219.1,40.8]
[1737612127345,3.12495415,3219.2,3219.1,40.8]
[1737612127855,3.62345415,3219.2,3219.1,40.8]
[1737612130149,4.12175415,3219.2,3219.1,40.8]
[1737612131552,4.07186574,3219.2,3219.1,40.8]
[1737612131752,8.1570235,3219.2,3219.1,40.8]
[1737612132860,8.56993374,3219.2,3219.1,40.8]
[1737612134756,8.52004088,3219.2,3219.1,40.8]
[1737612134950,8.56993534,3219.2,3219.1,40.8]
[1737612135855,8.56993534,3219.2,3218.7,0.00466273]
[1737612135856,0.62175,3218.8,3218.7,0.00466273]
[1737612136056,3.1250402,3218.8,3218.7,0.00466273]
[1737612136256,3.1250402,3218.8,3218.7,40.80466273]
[1737612138467,0.04989446,3218.8,3218.7,40.80466273]
[1737612138671,0.41303259,3219.1,3218.7,40.80466273]
[1737612138672,2.45339574,3219.1,3218.7,40.80466273]
[1737612138870,0.67160076,3219.0,3218.9,3.2078]
[1737612139269,0.04989175,3219.0,3218.9,3.2078]
[1737612139469,3.07509574,3219.1,3218.9,3.2078]
[1737612139867,2.45339574,3219.1,3218.9,3.2078]
[1737612141369,3.07508574,3219.1,3218.9,3.2078]
[1737612141569,2.45339574,3219.1,3218.9,3.2078]
[1737612142074,3.07508574,3219.1,3218.9,3.2078]
[1737612143175,0.04989107,3219.0,3218.9,3.2078]
[1737612143671,0.67160107,3219.0,3218.9,3.2078]
[1737612144072,0.04989107,3219.0,3218.9,3.2078]
[1737612144272,0.67160107,3219.0,3218.9,3.2078]
[1737612145180,0.62171,3219.0,3218.9,3.2078]
[1737612146070,0.62175,3218.8,3218.7,40.80466273]
[1737612146273,3.07514574,3218.8,3218.7,40.80466273]
[1737612149977,9.55471739,3218.8,3218.7,40.80466273]
[1737612150179,9.55471739,3218.8,3218.7,0.00466273]
[1737612150378,0.62192,3217.9,3217.7,3.2078]
[1737612150582,3.07533574,3217.8,3217.7,3.2078]
[1737612150877,7.03445841,3217.8,3217.3,3.2078]
[1737612151086,3.07541574,3217.4,3217.3,3.2078]
[1737612151479,2.45339574,3217.4,3216.7,3.2078]
[1737612151780,2.45339574,3217.0,3216.8,40.8]
[1737612153081,1.13771,3216.9,3216.8,40.8]
[1737612155283,0.5156,3216.9,3216.8,40.8]
[1737612156085,2.45339574,3217.0,3216.8,40.8]
[1737612156788,4.68163835,3216.9,3216.8,40.8]
[1737612158078,4.05952835,3216.9,3216.8,40.8]
[1737612158286,2.45339574,3217.0,3216.8,40.8]
[1737612159383,0.62211,3216.9,3216.8,40.8]
[1737612160490,1.11461,3216.9,3216.8,40.8]
[1737612162581,5.07782376,3216.9,3216.8,40.8]
[1737612163589,1.11461,3216.9,3216.8,40.8]
[1737612163894,0.62211,3216.9,3216.8,40.8]
[1737612164399,3.07549574,3217.0,3216.8,40.8]
[1737612164695,0.62211,3216.9,3216.8,40.8]
[1737612165997,4.72411823,3216.9,3216.8,40.8]
[1737612169094,7.93191823,3216.9,3216.8,40.8]
[1737612169996,7.93191823,3216.9,3216.7,0.00466273]
[1737612169997,7.30980823,3216.9,3216.7,0.00466273]
[1737612170299,0.62227,3216.1,3216.0,4.85671437]
[1737612172202,4.60193815,3216.1,3216.0,4.85671437]
[1737612174901,4.60193815,3216.1,3216.0,45.65671437]
[1737612175708,3.97966815,3216.1,3216.0,45.65671437]
[1737612175908,2.45339574,3216.3,3216.0,45.65671437]
[1737612176106,0.62225,3216.2,3216.0,46.15031437]
[1737612176706,3.07562574,3216.3,3216.0,46.15031437]
[1737612176906,0.62225,3216.2,3216.0,46.15031437]
[1737612177205,0.62226,3216.2,3216.0,46.15031437]
[1737612177400,2.45339574,3216.3,3216.0,45.65671437]
[1737612177602,5.12552009,3216.1,3216.0,4.85671437]
[1737612177806,1.12897,3216.1,3216.0,4.85671437]
[1737612178205,5.16380303,3216.1,3216.0,4.85671437]
[1737612182307,2.45339574,3216.3,3216.0,4.85671437]
[1737612182707,4.62888587,3216.1,3216.0,4.85671437]
[1737612183006,0.62227,3216.1,3216.0,4.85671437]
[1737612183206,4.68270315,3216.1,3216.0,4.85671437]
[1737612188117,7.89050315,3216.1,3216.0,4.85671437]
[1737612188320,7.26823315,3216.1,3215.7,0.00466273]
[1737612188520,0.62238,3215.5,3215.4,3.2078]
[1737612188813,3.07577574,3215.5,3215.4,3.2078]
[1737612189014,7.0358318,3215.5,3215.4,3.2078]
[1737612189208,7.0358318,3215.5,3215.2,14.27295723]
[1737612189209,6.4134518,3215.5,3215.2,14.27295723]
[1737612189413,0.62242,3215.3,3215.2,14.27295723]
[1737612189710,4.66125072,3215.3,3215.2,14.27295723]
[1737612193321,4.66125072,3215.3,3215.2,55.07295723]
[1737612196414,4.66125072,3215.3,3215.2,14.27295723]
[1737612196917,4.66125072,3215.3,3215.2,55.07295723]
[1737612197419,4.66125072,3215.3,3215.2,14.27295723]
[1737612201426,5.07621305,3215.3,3215.2,14.27295723]
[1737612205129,5.26916444,3215.3,3215.2,14.27295723]
[1737612205333,5.26916444,3215.3,3215.2,13.03285723]
[1737612205519,0.62246,3215.1,3215.0,15.42714372]
[1737612205721,6.28365574,3215.1,3215.0,14.79003372]
[1737612205931,10.72390753,3215.1,3215.0,14.79003372]
[1737612206126,11.92885892,3215.1,3215.0,14.79003372]
[1737612206331,11.92885892,3215.1,3215.0,13.03769908]
[1737612206531,9.47546318,3215.1,3215.0,13.03769908]
[1737612207132,9.5254392,3215.1,3215.0,13.03769908]
[1737612207533,9.52543585,3215.1,3215.0,13.03769908]
[1737612208745,9.11047352,3215.1,3215.0,13.03769908]
[1737612209135,9.06050085,3215.1,3215.0,13.03769908]
[1737612209535,9.47563137,3215.1,3215.0,13.03769908]
[1737612210251,9.52560336,3215.1,3215.0,13.03769908]
[1737612210540,9.57557502,3215.1,3215.0,13.03769908]
[1737612212341,9.57557502,3215.1,3215.0,11.80269908]
[1737612213445,9.1604445,3215.1,3215.0,11.80269908]
[1737612214045,9.57550255,3215.1,3215.0,11.80269908]
[1737612215543,9.57550255,3215.1,3215.0,8.64866817]
[1737612216143,9.1604445,3215.1,3215.0,8.64866817]
[1737612216548,9.16044596,3215.1,3215.0,8.64866817]
[1737612220753,9.16044596,3215.1,3215.0,7.99202817]
[1737612222153,9.16044596,3215.1,3215.0,6.99281817]
[1737612222452,11.61384376,3215.1,3215.0,5.24047996]
[1737612223354,9.16044615,3215.1,3215.0,5.24047996]
[1737612225250,9.16044615,3215.1,3215.0,4.55447996]
[1737612225555,9.11047284,3215.1,3215.0,4.55447996]
[1737612225760,9.16044539,3215.1,3215.0,4.55447996]
[1737612227256,9.16044368,3215.1,3215.0,4.55447996]
[1737612227757,9.16044368,3215.1,3215.0,2.80228103]
[1737612228152,8.14844368,3215.1,3215.0,2.80228103]
[1737612228955,4.94064368,3215.1,3215.0,3.29968103]
[1737612229347,3.52048368,3215.1,3215.0,3.29968103]
[1737612229549,13.4019796,3215.5,3215.0,8.92215103]
[1737612229852,13.4019796,3215.5,3215.4,3.8302]
[1737612229853,9.3699796,3215.5,3215.4,3.8302]
[1737612230157,9.3699796,3215.5,3215.4,44.6302]
[1737612230450,9.3699796,3215.5,3215.4,49.6302]
[1737612230946,9.3699796,3215.5,3215.4,44.6302]
[1737612231652,9.3699796,3215.5,3215.4,49.6302]
[1737612232365,9.3699796,3215.5,3215.4,44.0078]
[1737612233156,0.00466273,3215.7,3215.4,49.6302]
[1737612233157,10.98241628,3215.6,3215.4,49.6302]
[1737612233351,10.98241628,3215.6,3215.4,44.0078]
[1737612233550,10.98241628,3215.6,3215.4,49.0078]
[1737612234360,10.98241628,3215.6,3215.5,0.62238]
[1737612234757,10.98241628,3215.6,3215.5,5.62238]
[1737612237560,10.98241628,3215.6,3215.5,6.08768]
[1737612237960,10.98241628,3215.6,3215.5,1.08768]
[1737612238860,10.98241628,3215.6,3215.5,6.08768]
[1737612239555,10.98241628,3215.6,3215.5,1.08768]
[1737612241364,10.98241628,3215.6,3215.5,6.08768]
[1737612242553,10.27536628,3215.6,3215.5,6.08768]
[1737612242756,8.51623977,3215.8,3215.7,0.62234]
[1737612242965,7.01551977,3215.8,3215.7,0.62234]
[1737612243162,6.35576977,3215.8,3215.7,46.42234]
[1737612243465,6.19976977,3215.8,3215.7,46.42234]
[1737612243760,0.03054978,3215.8,3215.7,46.42234]
[1737612243965,9.78e-06,3215.8,3215.7,46.42234]
[1737612244965,0.00466273,3216.1,3216.0,0.62229]
[1737612245164,0.00466273,3216.1,3216.0,3.83009]
[1737612245367,0.00466273,3216.1,3216.0,8.83009]
[1737612245754,0.00466273,3216.1,3216.0,3.2078]
[1737612245960,3.09053725,3216.1,3216.0,3.2078]
[1737612246162,4.12163725,3216.1,3216.0,3.2078]
[1737612246466,4.17080999,3216.1,3216.0,3.2078]
[1737612246671,3.54853999,3216.1,3215.6,44.0078]
[1737612246965,2.56664452,3215.7,3215.6,44.0078]
[1737612248171,2.61582415,3215.7,3215.6,44.0078]
[1737612248360,2.56664452,3215.7,3215.6,44.0078]
[1737612248759,2.56664452,3215.7,3215.6,40.8]
[1737612248958,0.62245,3215.2,3215.0,2.80228103]
[1737612249164,2.96500452,3215.1,3215.0,2.80228103]
[1737612249360,3.58746452,3215.1,3215.0,43.60228103]
[1737612250262,4.12005616,3215.1,3215.0,43.60228103]
[1737612251559,4.12005595,3215.1,3215.0,43.60228103]
[1737612251755,8.22131656,3215.1,3215.0,43.60228103]
[1737612252068,0.6225,3214.9,3214.8,19.42685751]
[1737612252360,0.6225,3214.9,3214.8,18.19713854]
[1737612252361,5.06939169,3214.9,3214.8,18.19713854]
[1737612252566,9.06291787,3214.9,3214.8,18.19713854]
[1737612253069,8.44041787,3214.9,3214.8,18.19713854]
[1737612253865,1.5041,3215.1,3214.8,18.19713854]
[1737612254070,1.94430452,3215.0,3214.8,18.19713854]